Workbook

Sheet Totals
B2: Seva Chakkara: | E2: Exch Rate | F2: 51
B3: Consolidated Budget
H4: INR Rate | I4: 63
C5: Monthly Expense | F5: Yearly Expense
B6: Items | C6: Indian Rupee | D6: US Dollar | E6: # of Months | F6: Indian Rupee | G6: US Dollar
B8: All Food Items | C8: 197648 | D8: 3137.26 | E8: 12 | F8: 2371776 | G8: =F8/$I$4 -> 37647.2381
B10: Education | C10: 199378 | D10: 3164.73 | E10: 11 | F10: 2193160 | G10: =F10/$I$4 -> 34812.06349
B12: Administration & Maintenance | C12: 127730 | D12: 2027.46 | E12: 12 | F12: 1532760 | G12: =F12/$I$4 -> 24329.52381
B14: Totals | C14: =SUM(C8:C13) -> 524756 | D14: =SUM(D8:D13) -> 8329.45 | F14: =SUM(F8:F13) -> 6097696 | G14: =SUM(G8:G13) -> 96788.8254
B18: 2014 Budget Requested | C18: 1969996
B19: 2015 Budget Increase (From 2014 Requested) | C19: =(F10-C18)/C18 -> 0.1132814483
B21: 2014 Budget Approved (10% Incr. from 2013) | C21: 1512016
B22: 2015 Proposed (10% incr. from 2014) | C22: =C21*1.1 -> 1663217.6 | G22: =C22/I4 -> 26400.27937 | H22: USD Amount
B24: Shortfall in 2015 Budget Request | C24: =F10-C22 -> 529942.4
B25: Shortfall in 2015 Budget Request % | C25: =C24/F10 -> 0.2416341717

Sheet Education
B3: Seva Chakkara: Educational Expenses
C6: Nursery and Primary: Teacher/Staff Salaries
C8: Item | D8: Monthly | E8: # of Months | F8: Yearly
B9: 1 | C9: 3 Teachers + H.M | D9: 16000 | E9: 11 | F9: =E9*D9 -> 176000
B10: 2 | C10: Driver (Van) | D10: 8000 | E10: 11 | F10: =E10*D10 -> 88000
B11: 3 | C11: Watchman | D11: 4000 | E11: 11 | F11: =E11*D11 -> 44000
B12: 4 | C12: Sweeper | D12: 2500 | E12: 11 | F12: =E12*D12 -> 27500
B13: 5 | C13: Scavenger | D13: 2500 | E13: 11 | F13: =E13*D13 -> 27500
C14: Total | D14: =SUM(D9:D13) -> 33000 | F14: =SUM(F9:F13) -> 363000
C17: Primary and Secondary: Recurring Education Expenses
B18: I | C18: Recurring Expenses | D18: # of Students | E18: Monthly Fees | F18: # of Months | G18: Yearly Fees | H18: Uniform | I18: TextBooks | J18: Teachers/Staff Salary | K18: Total | L18: Total Annual Per Child
B19: 1 | C19: Seva Chakkara Nursery & Primary School | D19: 20 | E19: 35000 | F19: 11 | G19: 0 | H19: 30000 | I19: 20000 | J19: 363000 | K19: 448000 | L19: 22400
B20: 2 | C20: Sivakasi Matriculation Hr.Sec.Sc | D20: 6 | E20: 8159 | F20: 11 | G20: 89750 | H20: 12000 | I20: 18000 | K20: =SUM(G20:J20) -> 119750 | L20: 19958
B21: 3 | C21: High School Students | D21: 55 | E21: 28301 | F21: 11 | G21: 311320 | H21: 123750 | I21: 46750 | K21: 481820 | L21: 8760
B22: 4 | C22: Higher Secondary School Students | D22: 14 | E22: 9986 | F22: 10 | G22: 109850 | H22: 31500 | I22: 14000 | K22: =SUM(G22:I22) -> 155350 | L22: 11096
B23: 5 | C23: I.T.I Technical Education | D23: 2 | E23: 3333 | F23: 6 | G23: 20000 | H23: 2000 | I23: Nil | K23: =SUM(G23:I23) -> 22000 | L23: 11000
B24: 6 | C24: Diffrently abled | D24: Nil
B25: 7 | C25: Arts & Science College | D25: 12 | E25: 20203 | F25: 11 | G25: 222240 | H25: 14000 | I25: 21000 | K25: =SUM(G25:I25) -> 257240 | L25: 21436
B26: 8 | C26: P.G Course College | D26: 1 | E26: 5000 | F26: 11 | G26: 55000 | H26: 2000 | I26: 10000 | K26: =SUM(G26:I26) -> 67000 | L26: 67000
C27: Sub Total | D27: =SUM(D19:D26) -> 110 | E27: 109982 | G27: =SUM(G20:G26) -> 808160 | H27: =SUM(H19:H26) -> 215250 | I27: =SUM(I19:I26) -> 129750 | J27: =SUM(J19:J26) -> 363000 | K27: 1551160 | L27: =SUM(L19:L26) -> 161650 | M27: 1551160
B29: II | C29: Non- Recurring Expenses
C30: Charts | K30: 2500
C31: 4 Block Board | K31: 6500
C32: Amenities | K32: 10000
C33: Sub Total | K33: =SUM(K30:K32) -> 19000 | M33: 19000
B35: I & II | C35: Total | K35: =SUM(K27,K33) -> 1570160
B37: III | C37: Misc Educational Related Expenses | D37: Description | F37: Monthly Expenses | G37: # of Months | K37: Yearly Total
B38: 1 | C38: Conveyance | D38: Transport from Seva Chakkara to their colleges/ Lab Technician | F38: 4500 | G38: 10 | K38: =G38*F38 -> 45000
B39: 2 | C39: Food | D39: Lunch food, evening tea & biscuits | F39: 4500 | G39: 10 | K39: 45000
B40: 3 | C40: Notebook & Stationary | F40: 8000 | G40: 10 | K40: 80000
B41: 4 | C41: Private Tuition | F41: 15000 | G41: 10 | K41: 150000
B42: 5 | C42: Unit Test Examination | F42: 7000 | G42: 10 | K42: 70000
B43: 6 | C43: News paper & Magazine | F43: 3000 | G43: 12 | K43: 36000
B44: 7 | C44: Photo copy charges for Programs | F44: 2700 | G44: 10 | K44: 27000
B45: 8 | C45: College Students books/periodicals | F45: 7000 | G45: 10 | K45: 70000
B46: 9 | C46: Training expenses I.T.I. Students | F46: 3000 | G46: 10 | K46: 30000
B47: 10 | C47: Additional outside tuition | F47: 7000 | G47: 10 | K47: 70000
C48: Sub Total | F48: 61700 | K48: =SUM(K38:K47) -> 623000 | M48: 623000
B51: I & II & III | C51: Total | K51: 2193160 | M51: =SUM(M27:M50) -> 2193160

Sheet Edu Comparison
B3: 2015 | I3: 2014
B5: I | C5: Recurring Expenses | D5: # of Students | I5: I | J5: Recurring Expenses | K5: # of Students
B6: 1 | C6: Seva Chakkara Nursery & Primary School | D6: 20 | I6: 1 | J6: Seva Chakkara Nursery & Primary School | K6: 22
B7: 2 | C7: Sivakasi Matriculation Hr.Sec.Sc | D7: 6 | I7: 2 | J7: Alagappa School Matriculation | K7: 7
B8: 3 | C8: High School Students | D8: 55 | I8: 3 | J8: High School Students | K8: 57
B9: 4 | C9: Higher Secondary School Students | D9: 14 | I9: 4 | J9: Higher Secondary School Students | K9: 10
B10: 5 | C10: I.T.I Technical Education | D10: 2 | I10: 5 | J10: I.T.I Technical Education | K10: 1
B11: 6 | C11: Diffrently abled | D11: Nil | I11: 6 | J11: Diffrently abled | K11: 2
B12: 7 | C12: Arts & Science College | D12: 12 | I12: 7 | J12: Arts & Science College | K12: 7
B13: 8 | C13: P.G Course College | D13: 1 | I13: 8 | J13: Teachers Traning College | K13: 1
I14: 9 | J14: Lap Technician | K14: 1
C15: Sub Total | D15: =SUM(D6:D13) -> 110 | J15: Sub Total | K15: =SUM(K6:K14) -> 108

Sheet Food
B2: Seva Chakkara:
B3: Food Items
B5: Daily Essential Items
C7: Food Item | E7: # of Children | F7: Total Quantity Per Day | G7: Total Quantity Per Month | I7: Cost per Item | J7: Total Monthly Expense
D8: Total
C10: Milk | E10: 108 | F10: 25 | G10: 750 | H10: L | I10: 44 | J10: =I10*G10 -> 33000
C11: Rice Govt. | E11: 108 | F11: 20 | G11: 300 | H11: kg | I11: 1 | J11: =I11*G11 -> 300
C12: Out side Rice | E12: 108 | F12: 15 | G12: 450 | H12: kg | I12: 40 | J12: 18000
C13: Sugar Govt. | E13: 108 | F13: 5 | G13: 61 | H13: kg | I13: 13.5 | J13: 824
C14: Out Side Sugar | E14: 108 | F14: 5 | G14: 89 | H14: kg | I14: 32 | J14: 2848
C15: Wheat Govt. | E15: 108 | F15: 5 | G15: 50 | H15: kg | I15: 7.5 | J15: 375
C16: Out side Wheat | E16: 108 | F16: 5 | G16: 25 | H16: kg | I16: 20 | J16: 500
C17: Gas Cylinder | G17: 25 | H17: Nos | I17: 614 | J17: 15350
C18: Total Daily Essential Items | J18: =SUM(J10:J17) -> 71197
B21: Monthly Food Expenses
B22: Sl.No. | C22: List of Provision & Groceries | D22: Quantity Required | E22: Unit Price | F22: Monthly Expenses | G22: # of Months | I22: Yearly Expense
B24: 1 | C24: Essential Food Items (from above) | F24: 71197 | G24: 12 | I24: =G24*F24 -> 854364
B25: 2 | C25: Toor Dhal | D25: 125 | E25: 115 | F25: =E25*D25 -> 14375 | G25: =G24 -> 12 | I25: =G25*F25 -> 172500
B26: 3 | C26: Ured Dhal | D26: 95 | E26: 115 | F26: 10925 | G26: =G25 -> 12 | I26: 131100
B27: 4 | C27: Moon Dhal | D27: 65 | E27: 105 | F27: 6825 | G27: 12 | I27: 81900
B28: 5 | C28: Garam Dhal | D28: 65 | E28: 68 | F28: =E28*D28 -> 4420 | G28: 12 | I28: 53040
B29: 6 | C29: Mustard | D29: 8 | E29: 80 | F29: 640 | G29: 12 | I29: 7680
B30: 7 | C30: Pepper | D30: 5 | E30: 700 | F30: 3500 | G30: 12 | I30: 42000
B31: 8 | C31: Jeera | D31: 7 | E31: 260 | F31: 1820 | G31: 12 | I31: 21840
B32: 9 | C32: Methi | D32: 3 | E32: 110 | F32: 330 | G32: 12 | I32: 3960
B33: 10 | C33: L.G. Asafoetida | D33: 2 | E33: 1150 | F33: 2300 | G33: 12 | I33: 27600
B34: 11 | C34: Turmeric Powder | D34: 4 | E34: 130 | F34: 520 | G34: 12 | I34: 6240
B35: 12 | C35: Tamarind | D35: 33 | E35: 70 | F35: 2310 | G35: 12 | I35: 27720
B36: 13 | C36: Gundu Chillies | D36: 15 | E36: 90 | F36: 1350 | G36: 12 | I36: 16200
B37: 14 | C37: Dhaniya Local | D37: 30 | E37: 140 | F37: 4200 | G37: 12 | I37: 50400
B38: 15 | C38: Cooking Oil | D38: 155 | E38: 75 | F38: 11625 | G38: 12 | I38: 139500
B39: 16 | C39: Coconut Oil | D39: 7 | E39: 180 | F39: 1260 | G39: 12 | I39: 15120
B40: 17 | C40: Gingely Oil | D40: 16 | E40: 170 | F40: 2720 | G40: 12 | I40: 32640
B41: 18 | C41: Bengal gram | D41: 12 | E41: 60 | F41: 720 | G41: 12 | I41: 8640
B42: 19 | C42: Salt | D42: 55 | E42: 10 | F42: 550 | G42: 12 | I42: 6600
B43: 20 | C43: Jaggery | D43: 20 | E43: 44 | F43: 880 | G43: 12 | I43: 10560
B44: 21 | C44: Tea Powder | D44: 7 | E44: 200 | F44: 1400 | G44: 12 | I44: 16800
B45: 22 | C45: Vermicelli | D45: 25 | E45: 46 | F45: 1150 | G45: 12 | I45: 13800
B46: 23 | C46: Sooji | D46: 36 | E46: 33 | F46: 1188 | G46: 12 | I46: 14256
B47: 24 | C47: Chashew | D47: 2 | E47: 600 | F47: 1200 | G47: 12 | I47: 14400
B48: 25 | C48: Cardamon | D48: 0.5 | E48: 1000 | F48: 500 | G48: 12 | I48: 6000
B49: 26 | C49: Drygrapes | D49: 2 | E49: 300 | F49: 600 | G49: 12 | I49: 7200
B50: 27 | C50: Spoces | D50: 1 | E50: 675 | F50: 675 | G50: 12 | I50: 8100
B51: 28 | C51: Applam | D51: 15 | E51: 170 | F51: 2550 | G51: 12 | I51: 30600
B52: 29 | C52: Match Box | D52: 7 | E52: 8 | F52: 56 | G52: 12 | I52: 672
B53: 30 | C53: Soap (Washing) | D53: 350 | E53: 9 | F53: 3150 | G53: 12 | I53: 37800
B54: 31 | C54: Soap(Bathing) | D54: 220 | E54: 22 | F54: 4840 | G54: 12 | I54: 58080
B55: 32 | C55: Sabena | D55: 10 | E55: 45 | F55: 450 | G55: 12 | I55: 5400
B56: 33 | C56: Vim Dish was bar | D56: 20 | E56: 10 | F56: 200 | G56: 12 | I56: 2400
B57: 34 | C57: Phenyle | D57: 50 | E57: 50 | F57: 2500 | G57: 12 | I57: 30000
B58: 35 | C58: Blecing Powder | D58: 20 | E58: 35 | F58: 700 | G58: 12 | I58: 8400
B59: 36 | C59: Water Tax & Charges 2 Building | D59: 0 | E59: 0 | F59: 2791 | G59: 12 | I59: =G59*F59 -> 33492 | J59: 166417 | K59: 1997004
B60: 37 | C60: Vegetables ( from Below) | E60: 1041 | F60: 31231 | G60: 12 | I60: =G60*F60 -> 374772 | J60: 31231 | K60: 374772
C61: Total | F61: =SUM(F24:F60) -> 197648 | I61: =SUM(I24:I60) -> 2371776 | J61: =SUM(J59:J60) -> 197648 | K61: =SUM(K59:K60) -> 2371776
B64: Monthly Vegetables Expenses Average
B65: Sl.No. | C65: List of Provision & Groceries | D65: Quantity Required | E65: Unit Price | F65: Monthly Expenses | G65: # of Months | I65: Yearly Expense
B67: 1 | C67: Tomato | D67: 150 | E67: 25 | F67: =E67*D67 -> 3750 | G67: 12 | I67: =G67*F67 -> 45000
B68: 2 | C68: Carrot | D68: 28 | E68: 30 | F68: 840 | G68: 12 | I68: 10080
B69: 3 | C69: Beetroot | D69: 28 | E69: 25 | F69: 700 | G69: 12 | I69: 8400
B70: 4 | C70: Raddish | D70: 20 | E70: 18 | F70: 360 | G70: 12 | I70: 4320
B71: 5 | C71: Brinjal | D71: 72 | E71: 25 | F71: 1800 | G71: 12 | I71: 21600
B72: 6 | C72: Turnip | D72: 15 | E72: 15 | F72: 225 | G72: 12 | I72: 2700
B73: 7 | C73: Lady'sfinger | D73: 32 | E73: 30 | F73: 960 | G73: 12 | I73: 11520
B74: 8 | C74: Cabbage | D74: 25 | E74: 10 | F74: 250 | G74: 12 | I74: 3000
B75: 9 | C75: Beans | D75: 28 | E75: 80 | F75: 2240 | G75: 12 | I75: 26880
B76: 10 | C76: Potato | D76: 72 | E76: 20 | F76: 1440 | G76: 12 | I76: 17280
B77: 11 | C77: Greens | D77: 68 | E77: 15 | F77: 1020 | G77: 12 | I77: 12240
B78: 12 | C78: Bottle guard | D78: 20 | E78: 20 | F78: =E78*D78 -> 400 | G78: 12 | I78: 4800
B79: 13 | C79: Rawplantain | D79: 30 | E79: 30 | F79: 900 | G79: 12 | I79: 10800
B80: 14 | C80: Corn | D80: 25 | E80: 30 | F80: 750 | G80: 12 | I80: 9000
B81: 15 | C81: Bittergourd | D81: 20 | E81: 30 | F81: 600 | G81: 12 | I81: 7200
B82: 16 | C82: Peas | D82: 15 | E82: 30 | F82: 450 | G82: 12 | I82: 5400
B83: 17 | C83: Cauliflower | D83: 28 | E83: 32 | F83: 896 | G83: 12 | I83: 10752
B84: 18 | C84: Onion | D84: 150 | E84: 40 | F84: 6000 | G84: 12 | I84: 72000
B85: 19 | C85: Drumstick | D85: 40 | E85: 50 | F85: 2000 | G85: 12 | I85: 24000
B86: 20 | C86: Pumpkin | D86: 15 | E86: 15 | F86: 225 | G86: 12 | I86: 2700
B87: 21 | C87: Capsicum | D87: 15 | E87: 35 | F87: 525 | G87: 12 | I87: 6300
B88: 22 | C88: Cucumber | D88: 15 | E88: 35 | F88: 525 | G88: 12 | I88: 6300
B89: 23 | C89: Ginger | D89: 15 | E89: 50 | F89: 750 | G89: 12 | I89: 9000
B90: 24 | C90: Mushroom | D90: 15 | E90: 40 | F90: 600 | G90: 12 | I90: 7200
B91: 25 | C91: spinach | D91: 5 | E91: 40 | F91: 200 | G91: 12 | I91: 2400
B92: 26 | C92: garlic | D92: 25 | E92: 80 | F92: 2000 | G92: 12 | I92: 24000
B93: 27 | C93: Sweet Potatoes | D93: 15 | E93: 30 | F93: 450 | G93: 12 | I93: 5400
B94: 28 | C94: Pudina | D94: 15 | E94: 15 | F94: 225 | G94: 12 | I94: 2700
B95: 29 | C95: Curry leaves | D95: 15 | E95: 10 | F95: 150 | G95: 12 | I95: =G95*F95 -> 1800
C97: Total | F97: =SUM(F67:F96) -> 31231 | I97: =SUM(I67:I96) -> 374772
B100: I & II | C100: Total | I100: 2371776

Sheet Administration
B3: Section | C3: Project
B5: I | C5: Orphanage Staff Salary | D5: Description | E5: Monthly Expenses | F5: # of Months | G5: Yearly Expense
B6: 1 | C6: Administrative Officer | E6: 4500 | F6: 12 | G6: =E6*F6 -> 54000
B7: 2 | C7: Cook (2) | E7: 7000 | F7: =F6 -> 12 | G7: 84000
B8: 3 | C8: Asst. Cook 1 | E8: 3000 | F8: 12 | G8: 36000
B9: 4 | C9: Store Keeper | E9: 3500 | F9: 12 | G9: 42000
B10: 5 | C10: Medical Asst. | E10: 3000 | F10: 12 | G10: 36000
B11: 6 | C11: Boys & Girls Warden (2) | E11: 10000 | F11: 12 | G11: 120000
B12: 7 | C12: Office Asst. | E12: 4000 | F12: 12 | G12: 48000
B13: 8 | C13: Driver (Auto) | E13: 5000 | F13: 12 | G13: 60000
C14: Sub Total | E14: =SUM(E6:E13) -> 40000 | G14: =SUM(G6:G13) -> 480000 | I14: 40000 | J14: 480000
B17: II | C17: Administration & Maintenance | D17: Description | E17: Monthly Expenses | F17: # of Months | G17: Yearly Expense
C18: Computer maintenance | E18: 700 | F18: =F13 -> 12 | G18: =E18*F18 -> 8400
C19: Computer Sheet | E19: 800 | F19: =F18 -> 12 | G19: 9600
C20: Courier charges | E20: 400 | F20: 12 | G20: 4800
C21: Photo expenses | E21: 2000 | F21: 12 | G21: 24000
C22: Binding charges | E22: 1000 | F22: 12 | G22: 12000
C23: Sanitation | E23: 1500 | F23: 12 | G23: 18000
C24: Orphanage cleaning charges | E24: 600 | F24: 12 | G24: 7200
C25: Electricity | E25: 30000 | F25: 12 | G25: 360000
C26: Telephones | D26: (2) approximately | E26: 4500 | F26: 12 | G26: 54000
C27: Transportation | E27: 1500 | F27: 12 | G27: 18000
C28: Conveyance for own Auto | E28: 15500 | F28: 12 | G28: 186000
C29: Vehicle repair (1 Auto, 1 Van 2 Cycles) | E29: 1500 | F29: 12 | G29: 18000
C30: Building maintenance | E30: 500 | F30: 12 | G30: 6000
C31: Furniture & Fitting Maintenance | E31: 500 | F31: 12 | G31: 6000
C32: Primary & Nursery School maintenance | E32: 500 | F32: 12 | G32: 6000
C33: Sundry | E33: 4680 | F33: 12 | G33: 56160
C34: Sub Total | E34: =SUM(E18:E33) -> 66180 | G34: =SUM(G18:G33) -> 794160 | I34: 66180 | J34: 794160
B36: III | C36: Children Health, Food & Recreation | D36: Description | E36: Monthly Expenses | F36: # of Months | G36: Yearly Expense
C37: Pooja expenses | E37: 800 | F37: =F33 -> 12 | G37: =E37*F37 -> 9600
C38: Kids, children, excursion | E38: 1000 | F38: =F37 -> 12 | G38: 12000
C39: Dress Materials inner garments | E39: 1500 | F39: 12 | G39: 18000
C40: Bed Materials | E40: 500 | F40: 12 | G40: 6000
C41: Mosquito mats | E41: 500 | F41: 12 | G41: 6000
C42: Broom ( 2 Buildings) | E42: 400 | F42: 12 | G42: 4800
C43: Spindle Broom | E43: 200 | F43: 12 | G43: 2400
C44: Litmus perfume for toilet | E44: 250 | F44: 12 | G44: 3000
C45: Gas repair | E45: 200 | F45: 12 | G45: 2400
C46: Napkins expense (??) | E46: 1200 | F46: 12 | G46: 14400
C47: Honorarium | E47: 5000 | F47: 12 | G47: 60000
C48: Medical | D48: average expenditure | E48: 10000 | F48: 12 | G48: 120000
C49: Sub Total | E49: =SUM(E37:E48) -> 21550 | G49: =SUM(G37:G48) -> 258600 | I49: 21550 | J49: 258600
B52: I & II & | C52: III Total | E52: 127730 | G52: 1532760 | I52: =SUM(I14:I51) -> 127730 | J52: =SUM(J14:J51) -> 1532760
